bitfinex/quotes_ETHUSD_20250425
["timestamp","ask_amount","ask_price","bid_price","bid_amount"]
[1745610337435,5.5733423,1794.3,1794.1,4.795]
[1745610337936,5.57351465,1794.2,1794.1,4.795]
[1745610339436,5.57351465,1794.2,1794.1,0.05]
[1745610339437,6.33431465,1794.2,1794.1,0.05]
[1745610343251,5.57351465,1794.2,1794.1,0.05]
[1745610343627,11.68351464,1794.2,1794.1,0.05]
[1745610344852,6.10999999,1794.2,1794.1,11.14382531]
[1745610345021,0.779,1794.7,1794.2,5.57337916]
[1745610345022,5.57259603,1794.5,1794.2,5.57337916]
[1745610345223,11.68244539,1794.6,1794.1,11.99773631]
[1745610345424,5.57290997,1794.4,1794.1,5.57]
[1745610345741,11.14609763,1794.4,1794.1,5.57]
[1745610345943,5.57290997,1794.4,1794.1,5.57]
[1745610346247,5.57276475,1794.5,1794.1,5.57]
[1745610346629,5.57292167,1794.4,1794.1,11.14381592]
[1745610346831,5.57279251,1794.5,1794.1,11.14381592]
[1745610347151,5.5728997,1794.4,1794.1,11.14381592]
[1745610347333,5.5728997,1794.4,1794.1,5.57]
[1745610347972,5.57323393,1794.3,1794.1,5.57]
[1745610348260,11.14604384,1794.4,1794.1,5.57]
[1745610348428,11.14609725,1794.4,1794.1,5.57]
[1745610348628,5.57334393,1794.3,1794.1,5.57]
[1745610348828,5.57334393,1794.3,1794.1,0.821]
[1745610349075,5.57334393,1794.3,1794.2,4.749]
[1745610350242,5.57351465,1794.2,1794.1,0.05]
[1745610350769,7.20214085,1794.2,1794.1,0.05]
[1745610352866,6.34801465,1794.2,1794.1,0.05]
[1745610353170,5.57351465,1794.2,1794.1,0.05]
[1745610355458,11.68351464,1794.2,1794.1,0.05]
[1745610362780,14.43588984,1794.2,1794.1,0.05]
[1745610362993,5.57475749,1793.8,1793.7,16.699]
[1745610363189,5.57556329,1793.6,1793.5,4.749]
[1745610364906,5.57520822,1793.7,1793.5,4.749]
[1745610365193,5.57537912,1793.6,1793.5,5.5382]
[1745610366003,5.57520822,1793.7,1793.5,5.5382]
[1745610366598,5.57537912,1793.6,1793.5,5.5382]
[1745610367107,5.57537912,1793.6,1793.5,4.749]
[1745610369302,5.57537912,1793.6,1793.3,6.35377788]
[1745610369507,5.57570618,1793.5,1793.4,4.749]
[1745610369710,5.57537912,1793.6,1793.4,4.749]
[1745610369891,11.15102853,1793.6,1793.4,4.749]
[1745610370095,5.57568999,1793.5,1793.4,4.749]
[1745610370291,11.15104757,1793.6,1793.4,4.749]
[1745610370476,5.57537912,1793.6,1793.4,4.749]
[1745610370999,5.57538077,1793.6,1793.4,4.749]
[1745610371397,11.68487359,1793.8,1793.5,4.749]
[1745610371599,6.10999999,1793.8,1793.6,0.8208]
[1745610372676,11.68497608,1793.8,1793.6,0.8208]
[1745610372884,5.57463247,1793.9,1793.6,0.8208]
[1745610373091,5.57498235,1793.8,1793.6,0.8208]
[1745610373289,5.57506829,1793.7,1793.5,4.749]
[1745610373492,5.57548732,1793.6,1793.4,0.7847]
[1745610373691,5.57548732,1793.6,1793.5,4.749]
[1745610374192,5.57506829,1793.7,1793.5,4.749]
[1745610374390,5.57488414,1793.8,1793.6,4.749]
[1745610374912,5.57506829,1793.7,1793.6,4.749]
[1745610375115,5.57488414,1793.8,1793.6,4.749]
[1745610375610,5.57506829,1793.7,1793.6,4.749]
[1745610376115,6.69006353,1793.7,1793.6,4.749]
[1745610377410,5.57506829,1793.7,1793.6,4.749]
[1745610377780,5.57568999,1793.5,1793.2,0.7524]
[1745610377980,5.57604626,1793.4,1793.3,4.75]
[1745610378921,5.57591365,1793.5,1793.3,4.75]
[1745610380690,5.57554329,1793.6,1793.3,4.75]
[1745610380887,5.57569748,1793.5,1793.3,4.75]
[1745610381409,5.57569748,1793.5,1793.4,4.75]
[1745610387222,5.57552017,1793.6,1793.4,4.748]
[1745610387725,11.68520012,1793.7,1793.4,10.32399597]
[1745610388023,6.10999999,1793.7,1793.6,6.34437912]
[1745610388193,6.10999999,1793.7,1793.6,0.769]
[1745610389387,11.68520511,1793.7,1793.4,11.14369998]
[1745610389586,6.10999999,1793.7,1793.4,11.14369998]
[1745610390015,6.10999999,1793.7,1793.5,5.57560365]
[1745610390327,6.10999999,1793.7,1793.6,6.39527912]
[1745610390522,6.10999999,1793.9,1793.6,6.39527912]
[1745610390728,6.10999999,1793.9,1793.6,6.39509979]
[1745610390927,11.68455149,1793.9,1793.6,0.8199]
[1745610391221,6.10999999,1793.9,1793.6,6.39516549]
[1745610391428,6.10999999,1793.9,1793.6,6.39505971]
[1745610391624,11.68394734,1794.1,1793.7,5.57497458]
[1745610391834,11.68394734,1794.1,1793.8,4.748]
[1745610392042,11.68394734,1794.1,1793.9,0.8199]
[1745610392200,5.574136,1794.0,1793.8,4.748]
[1745610392608,5.57418149,1794.0,1793.8,4.748]
[1745610392820,13.49177858,1794.1,1793.8,4.748]
[1745610393431,5.57427045,1794.0,1793.8,4.748]
[1745610393940,13.49182185,1794.1,1793.8,4.80374264]
[1745610394103,5.5740011,1794.1,1793.8,4.748]
[1745610394305,5.57413922,1794.0,1793.8,4.748]
[1745610394743,5.57444673,1793.9,1793.7,0.8199]
[1745610395020,5.57444673,1793.9,1793.8,4.748]
[1745610395536,6.68912075,1794.0,1793.8,4.748]
[1745610395744,6.6891139,1794.0,1793.8,4.748]
[1745610395918,5.57429987,1794.0,1793.8,5.5609]
[1745610396119,5.57444673,1793.9,1793.8,4.748]
[1745610397144,5.57429987,1794.0,1793.8,4.748]
[1745610397319,11.14874228,1794.0,1793.8,4.748]
[1745610397518,5.57444673,1793.9,1793.8,4.748]
[1745610397930,5.57429987,1794.0,1793.8,4.748]
[1745610398642,5.57444673,1793.9,1793.8,4.748]
[1745610399031,5.57444673,1793.9,1793.7,0.8129]
[1745610399032,5.57475749,1793.8,1793.2,0.8541262]
[1745610399212,5.57547375,1793.6,1793.3,11.14002511]
[1745610399414,5.57547375,1793.6,1793.3,5.5639]
[1745610400120,5.57513219,1793.7,1793.3,11.14016651]
[1745610400333,5.57513219,1793.7,1793.4,5.57598575]
[1745610400521,5.57513219,1793.7,1793.3,11.14004384]
[1745610400722,5.57492806,1793.8,1793.4,5.57589821]
[1745610401123,5.57516636,1793.7,1793.4,5.57589821]
[1745610401324,5.57492806,1793.8,1793.6,0.796]
[1745610401919,5.57506829,1793.7,1793.6,0.796]
[1745610402125,1.19565597,1793.8,1793.4,0.7771]
[1745610402332,5.57518148,1793.7,1793.4,6.353087]
[1745610402553,6.77056834,1793.8,1793.4,0.7771]
[1745610402554,5.5756362,1793.6,1793.4,0.7771]
[1745610402844,11.15053351,1793.7,1793.4,0.7771]
[1745610403056,5.57522067,1793.7,1793.4,0.7771]
[1745610404229,5.57522067,1793.7,1793.4,6.35296001]
[1745610404653,6.77054358,1793.8,1793.4,6.35296001]
[1745610404854,5.57511069,1793.7,1793.4,6.35296001]
[1745610405546,5.57511069,1793.7,1793.4,0.7771]
[1745610405921,5.57511069,1793.7,1793.2,6.35563928]
[1745610405922,5.57554828,1793.6,1793.2,6.35563928]
[1745610406117,6.33104828,1793.6,1793.3,4.748]
[1745610406528,7.56517961,1793.7,1793.3,10.32412455]
[1745610406719,6.80967961,1793.7,1793.3,10.32408883]
[1745610406933,5.57511069,1793.7,1793.4,5.57585111]
[1745610407263,5.57511069,1793.7,1793.3,10.32408883]
[1745610407615,5.57511069,1793.7,1793.3,5.57608883]
[1745610407820,5.5754991,1793.6,1793.4,4.748]
[1745610408223,6.33056829,1793.7,1793.4,4.748]
[1745610408824,6.33056829,1793.7,1793.4,10.32398574]
[1745610409152,6.33056829,1793.7,1793.4,4.748]
[1745610410622,5.57539493,1793.6,1793.4,4.748]
[1745610411450,5.57538666,1793.6,1793.4,4.748]
[1745610413855,6.33070285,1793.7,1793.4,4.748]
[1745610414660,0.7856,1793.5,1793.4,4.748]
[1745610414863,6.36128999,1793.5,1793.4,4.748]
[1745610415440,5.5761418,1793.4,1793.3,4.748]
[1745610415636,5.57662279,1793.2,1793.1,0.05]
[1745610415835,18.0698198,1793.3,1793.1,4.798]
[1745610416040,5.57662279,1793.2,1793.1,4.798]
[1745610416249,12.49325057,1793.3,1793.1,4.798]
[1745610416960,6.91679999,1793.3,1793.1,4.798]
[1745610417166,12.49311537,1793.3,1793.1,4.798]
[1745610417992,6.10999999,1793.3,1793.1,4.798]
[1745610418171,6.10999999,1793.3,1793.2,6.40212279]
[1745610419857,5.57548949,1793.6,1793.2,11.97874558]
[1745610420055,5.57548949,1793.6,1793.2,6.40193528]
[1745610420373,5.57548949,1793.6,1793.3,5.57626609]
[1745610420558,5.57548949,1793.6,1793.2,6.40190872]
[1745610420731,5.57609986,1793.4,1793.2,0.8255]
[1745610420932,5.57609986,1793.4,1793.1,4.798]
[1745610421134,11.98099407,1793.4,1793.1,0.05]
[1745610421334,5.5763188,1793.3,1793.1,0.05]
[1745610421564,5.5763188,1793.3,1793.2,4.747]
[1745610421944,0.8286,1793.4,1793.2,4.747]
[1745610422146,5.57579413,1793.5,1793.2,10.32359445]
[1745610422330,6.36641694,1793.6,1793.2,10.32346316]
[1745610422937,5.57517604,1793.7,1793.3,6.40144541]
[1745610423139,5.57579004,1793.5,1793.3,0.8254]
[1745610423352,5.57579004,1793.5,1793.2,10.32348163]
[1745610423884,6.32719004,1793.5,1793.2,4.747]
[1745610424090,6.32719004,1793.5,1793.2,10.32359347]
[1745610424377,6.32719004,1793.5,1793.2,4.747]
[1745610425779,5.57603256,1793.4,1793.2,4.747]
[1745610426064,5.57609407,1793.4,1793.2,4.747]
[1745610426280,5.57631182,1793.3,1793.2,4.747]
[1745610426436,5.57609407,1793.4,1793.2,4.747]
[1745610427271,6.32725498,1793.5,1793.2,4.747]
[1745610427968,11.9032013,1793.5,1793.2,4.747]
[1745610428133,6.32725498,1793.5,1793.2,4.747]
[1745610428341,11.90318721,1793.5,1793.2,4.747]
[1745610428737,11.90319637,1793.5,1793.2,4.747]
[1745610428939,11.90320341,1793.5,1793.2,4.747]
[1745610429163,5.57601576,1793.4,1793.2,4.747]
[1745610429991,6.32725498,1793.5,1793.2,10.32352544]
[1745610430193,6.32725498,1793.5,1793.2,4.747]
[1745610430405,5.57603582,1793.4,1793.2,4.747]
[1745610431186,5.57631182,1793.3,1793.2,4.747]
[1745610431391,5.57603582,1793.4,1793.2,4.747]
[1745610431579,11.68603581,1793.4,1793.2,4.747]
[1745610431891,5.57631182,1793.3,1793.2,4.747]
[1745610432187,11.68603581,1793.4,1793.2,4.747]
[1745610432694,11.68603702,1793.4,1793.2,4.747]
[1745610432898,6.10999999,1793.4,1793.2,4.747]
[1745610433089,6.10999999,1793.4,1793.2,4.8028]
[1745610433588,6.10999999,1793.4,1793.2,10.37940971]
[1745610434090,6.10999999,1793.4,1793.2,11.1922164]
[1745610434303,6.10999999,1793.4,1793.3,5.57631182]
[1745610434592,6.10999999,1793.4,1793.2,11.1922047]
[1745610434815,6.10999999,1793.4,1793.2,16.76862749]
[1745610435085,6.10999999,1793.4,1793.3,5.57631182]
[1745610435290,5.57453531,1793.9,1793.5,5.57550469]
[1745610435291,12.51246185,1793.9,1793.5,5.57550469]
[1745610435498,12.51246185,1793.9,1793.6,10.3232457]
[1745610435676,6.10999999,1793.9,1793.7,5.57504067]
[1745610435879,0.7771,1794.1,1793.8,6.33095749]
[1745610436080,6.3511272,1794.1,1793.8,0.7562]
[1745610436257,11.92524344,1794.1,1793.7,6.33104015]
[1745610436458,5.57439188,1794.0,1793.6,10.32321617]
[1745610436766,6.96412619,1794.4,1793.6,10.32321617]
[1745610436970,5.57372917,1794.2,1793.8,6.33084289]
[1745610437288,5.57372917,1794.2,1793.8,0.7562]
[1745610437493,5.57372917,1794.2,1793.8,6.33077984]
[1745610437692,0.52033381,1794.1,1793.8,6.33077984]
[1745610437999,5.57394312,1794.1,1793.8,6.33095347]
[1745610438462,5.57394312,1794.1,1793.8,0.7562]
[1745610438861,5.57394312,1794.1,1793.8,6.33091798]
[1745610439062,11.14740703,1794.2,1793.8,6.33091798]
[1745610439283,5.57364466,1794.2,1793.8,6.33091798]
[1745610439490,5.57326091,1794.3,1793.9,5.57428533]
[1745610439696,5.57354327,1794.2,1794.0,4.747]
[1745610440295,11.14729268,1794.2,1794.0,4.747]
[1745610440532,5.57354327,1794.2,1794.0,4.747]
[1745610440812,5.57382531,1794.1,1794.0,4.747]
[1745610444715,11.68352463,1794.2,1794.0,4.747]
[1745610446587,17.25731362,1794.2,1794.0,4.747]
[1745610446982,11.68352463,1794.2,1794.0,4.747]
[1745610447379,17.25729639,1794.2,1794.0,4.747]
[1745610448047,6.10999999,1794.2,1794.0,4.747]
[1745610448213,11.68355495,1794.2,1794.0,4.747]
[1745610454011,11.68355495,1794.2,1794.0,4.8028]
[1745610454609,6.10999999,1794.2,1794.0,10.37683449]
[1745610454829,6.10999999,1794.2,1794.1,5.57382531]
[1745610454991,6.10999999,1794.2,1794.1,6.40592531]
[1745610455181,11.6827914,1794.5,1794.2,5.57347498]
[1745610455381,6.10999999,1794.5,1794.3,5.57301578]
[1745610455716,6.10999999,1794.5,1794.4,5.5771]
[1745610455878,0.7635,1794.8,1794.5,5.57257747]
[1745610456079,5.57145812,1794.9,1794.6,5.57223884]
[1745610456378,5.57093853,1795.1,1794.2,0.8157]
[1745610456379,5.57318423,1794.4,1794.2,0.8157]
[1745610456583,5.57318423,1794.4,1794.3,4.745]
[1745610457319,5.57363098,1794.2,1794.0,0.0558]
[1745610457522,5.57363098,1794.2,1794.1,4.745]
[1745610457831,5.57327896,1794.3,1794.1,4.745]
[1745610458621,5.57351465,1794.2,1794.1,4.745]
[1745610459325,11.14675192,1794.3,1794.1,4.745]
[1745610459535,5.57327896,1794.3,1794.2,4.744]
[1745610459834,5.57327896,1794.3,1794.0,0.0558]
[1745610459835,5.57327896,1794.3,1794.0,5.62991221]
[1745610460034,5.57307556,1794.4,1794.2,4.744]
[1745610460331,5.57320403,1794.3,1794.2,4.744]
[1745610460932,11.68320402,1794.3,1794.2,4.744]
[1745610462026,6.10999999,1794.3,1794.2,4.744]
[1745610462639,11.68320402,1794.3,1794.2,4.744]
[1745610463902,6.10999999,1794.3,1794.2,4.744]
[1745610464103,11.68320402,1794.3,1794.2,4.744]
[1745610464517,6.10999999,1794.3,1794.2,4.744]
[1745610466636,11.68320402,1794.3,1794.2,4.744]
[1745610466850,5.57320403,1794.3,1794.2,4.744]
[1745610467373,6.687817,1794.3,1794.2,4.744]
[1745610467654,7.506217,1794.3,1794.2,4.744]
[1745610467864,5.57292565,1794.4,1794.2,4.744]
[1745610468963,5.57320403,1794.3,1794.2,4.744]
[1745610470255,6.33010403,1794.3,1794.2,4.644]
[1745610470660,5.57320403,1794.3,1794.2,4.644]
[1745610471747,6.33010403,1794.3,1794.2,4.644]
[1745610472448,5.5739605,1794.1,1793.9,0.7537]
[1745610472641,5.574136,1794.0,1793.7,3.8118]
[1745610472837,12.47703599,1794.0,1793.6,16.716]
[1745610473055,5.57500882,1793.8,1793.7,4.744]
[1745610473430,5.57500882,1793.8,1793.5,0.8118]
[1745610473626,5.57459712,1793.9,1793.6,4.744]
[1745610473815,11.68430442,1794.0,1793.6,10.3193398]
[1745610474011,17.25873212,1794.0,1793.6,10.3193398]
[1745610474216,5.57448704,1793.9,1793.6,10.3193398]
[1745610474419,11.68430442,1794.0,1793.6,10.3193398]
[1745610474617,11.68430442,1794.0,1793.7,0.7757]
[1745610475249,6.10999999,1794.0,1793.7,0.7757]
[1745610475618,6.10999999,1794.0,1793.8,5.5746373]
[1745610476125,6.10999999,1794.0,1793.8,5.57465648]
[1745610476336,6.10999999,1794.0,1793.7,6.3505871]
[1745610476719,6.10999999,1794.0,1793.8,6.34978434]
[1745610477020,6.10999999,1794.0,1793.9,5.57444673]
[1745610477420,6.10999999,1794.0,1793.9,6.35194673]
[1745610477620,5.57335231,1794.3,1793.9,6.3517645]
[1745610477920,5.57335231,1794.3,1794.0,4.744]
[1745610478826,6.10999999,1794.4,1794.0,4.744]
[1745610479026,11.68305505,1794.4,1794.0,10.31811265]
[1745610479233,11.68305505,1794.4,1794.0,10.31798817]
[1745610479437,6.10999999,1794.4,1794.1,6.35928393]
[1745610479624,11.68290021,1794.4,1794.1,6.35928393]
[1745610479828,11.68290021,1794.4,1794.1,0.7856]
[1745610480339,11.68290021,1794.4,1794.1,6.35940685]
[1745610480665,11.68290021,1794.4,1794.1,0.7856]
[1745610480859,17.2560618,1794.4,1794.1,0.7856]
[1745610481056,11.68290021,1794.4,1794.1,0.7856]
[1745610481448,5.57322473,1794.3,1794.1,0.7856]
[1745610481660,11.68290021,1794.4,1794.1,0.7856]
[1745610482032,17.25607751,1794.4,1794.1,0.7856]
[1745610482250,5.57326716,1794.3,1794.1,0.7856]
[1745610482449,11.68290021,1794.4,1794.1,0.7856]
[1745610482628,6.10999999,1794.4,1794.1,6.35931394]
[1745610482827,11.68302094,1794.4,1794.1,0.7856]
[1745610483161,11.68302094,1794.4,1794.1,6.35941151]
[1745610484161,6.10999999,1794.4,1794.1,6.35941151]
[1745610484347,5.57230658,1794.6,1794.1,0.7856]
[1745610484548,5.57227461,1794.6,1794.3,5.57304882]
[1745610484723,5.57227461,1794.6,1794.4,4.743]
[1745610485124,5.57258289,1794.5,1794.4,4.743]
[1745610485354,6.37468289,1794.5,1794.4,4.743]
[1745610485620,7.65479126,1794.5,1794.4,4.743]
[1745610485766,8.17268511,1794.5,1794.4,4.743]
[1745610486338,8.69090925,1794.5,1794.4,4.743]
[1745610487655,5.57321137,1794.3,1794.1,4.743]
[1745610489036,5.5730364,1794.4,1794.1,4.743]
[1745610489240,5.57238316,1794.6,1794.2,6.34268675]
[1745610489442,5.57238316,1794.6,1794.2,0.7694]
[1745610489763,5.57238316,1794.6,1794.2,6.34279622]
[1745610489934,5.57238316,1794.6,1794.3,4.743]
[1745610490134,11.68217811,1794.7,1794.3,10.31614734]
[1745610490367,5.57235373,1794.6,1794.3,10.31614734]
[1745610490734,5.57235373,1794.6,1794.3,4.743]
[1745610491459,11.1448561,1794.6,1794.3,4.743]
[1745610491639,5.57235373,1794.6,1794.3,4.743]
[1745610492876,0.7751,1794.5,1794.1,4.743]
[1745610493168,6.35001465,1794.2,1794.1,4.743]
[1745610493386,12.46001464,1794.2,1794.1,4.743]
[1745610494266,11.68351464,1794.2,1794.1,4.743]
[1745610494775,6.10999999,1794.2,1794.1,4.743]
[1745610495142,11.68351464,1794.2,1794.1,4.743]
[1745610495465,6.10999999,1794.2,1794.1,4.743]
[1745610495638,11.68351464,1794.2,1794.1,4.743]
[1745610495842,6.10999999,1794.2,1794.1,4.743]
[1745610496766,11.68351464,1794.2,1794.1,4.743]
[1745610496981,6.10999999,1794.2,1794.1,4.7988]
[1745610497679,11.68351464,1794.2,1794.1,4.7988]
[1745610499156,5.57351465,1794.2,1794.1,4.7988]
[1745610501283,5.57336922,1794.3,1794.1,4.7988]
[1745610501482,5.57351465,1794.2,1794.1,4.7988]
[1745610501677,5.57336922,1794.3,1794.1,4.7988]
[1745610501879,6.10999999,1794.4,1794.1,4.7988]
[1745610502086,5.57345333,1794.3,1794.1,4.7988]
[1745610502451,5.57351465,1794.2,1794.1,4.7988]
[1745610504692,6.38001465,1794.2,1794.1,4.7988]
[1745610504997,13.68536144,1794.2,1794.1,4.7988]
[1745610505367,13.68536144,1794.2,1794.1,0.0558]
[1745610505570,14.20357939,1794.2,1794.1,0.0558]
[1745610505971,13.00823259,1794.2,1794.1,0.0558]
[1745610506277,11.68351464,1794.2,1794.1,0.0558]
[1745610511097,12.50321464,1794.2,1794.1,0.0558]
[1745610511401,13.8485615,1794.2,1794.1,0.0558]
[1745610511770,13.8485615,1794.2,1793.3,0.7937]
[1745610511771,6.39476829,1793.7,1793.3,0.7937]
[1745610511993,6.92969999,1793.7,1793.4,4.742]
[1745610512311,5.57563146,1793.6,1793.4,4.742]
[1745610512606,5.57570816,1793.5,1793.4,4.742]
[1745610512804,5.57556154,1793.6,1793.4,4.742]
[1745610513107,5.57568999,1793.5,1793.4,4.742]
[1745610513974,5.57568999,1793.5,1793.1,5.62672397]
[1745610514173,5.57611158,1793.4,1793.2,4.742]
[1745610514781,6.39601182,1793.3,1793.2,4.742]
[1745610515510,11.68611157,1793.4,1793.2,4.742]
[1745610515675,5.57631182,1793.3,1793.2,4.742]
[1745610517902,18.08227352,1793.4,1793.2,4.742]
[1745610518078,5.57631182,1793.3,1793.2,4.742]
[1745610520277,12.50600602,1793.4,1793.2,4.742]
[1745610520278,6.92969999,1793.4,1793.2,4.742]
[1745610520478,12.50571762,1793.4,1793.2,4.742]
[1745610521013,5.57631182,1793.3,1793.2,4.742]
[1745610521914,14.31387539,1793.4,1793.2,4.742]
[1745610522090,5.57631182,1793.3,1793.2,4.742]
[1745610522290,19.89015321,1793.4,1793.2,4.742]
[1745610522607,5.57631182,1793.3,1793.2,4.742]
[1745610523391,14.31387539,1793.4,1793.2,4.742]
[1745610523597,14.31394203,1793.4,1793.2,4.742]
[1745610524002,12.50578426,1793.4,1793.2,4.742]
[1745610525212,5.57631182,1793.3,1793.2,4.742]
[1745610525380,12.50578426,1793.4,1793.2,4.742]
[1745610525580,5.57631182,1793.3,1793.2,4.742]
[1745610526612,12.50578426,1793.4,1793.2,4.742]
[1745610526780,11.68608426,1793.4,1793.2,4.742]
[1745610527323,17.26231621,1793.4,1793.2,4.742]
[1745610527484,17.26233813,1793.4,1793.2,4.742]
[1745610528120,17.26234657,1793.4,1793.2,4.742]
[1745610528318,5.57631182,1793.3,1793.2,4.742]
[1745610529018,17.26236236,1793.4,1793.2,4.742]
[1745610529317,17.26235405,1793.4,1793.2,4.742]
[1745610529513,11.68608426,1793.4,1793.2,4.742]
[1745610529708,5.57631182,1793.3,1793.2,4.742]
[1745610530085,11.68608426,1793.4,1793.2,4.742]
[1745610530286,5.57631182,1793.3,1793.2,4.742]
[1745610530986,17.26232084,1793.4,1793.2,4.742]
[1745610531317,17.26232423,1793.4,1793.2,4.742]
[1745610531521,5.57631182,1793.3,1793.2,4.742]
[1745610531716,11.68608426,1793.4,1793.2,4.742]
[1745610531885,6.10999999,1793.4,1793.2,4.742]
[1745610532090,5.57631182,1793.3,1793.2,4.742]
[1745610533519,17.26240233,1793.4,1793.2,4.742]
[1745610533716,11.68613176,1793.4,1793.2,4.742]
[1745610534289,5.57631182,1793.3,1793.2,4.742]
[1745610534687,6.35401182,1793.3,1793.2,4.742]
[1745610534888,6.10999999,1793.4,1793.2,11.10040987]
[1745610535086,6.10999999,1793.4,1793.2,11.10023468]
[1745610535522,5.57631182,1793.3,1793.2,5.5238]
[1745610535723,5.57631182,1793.3,1793.2,4.742]
[1745610535904,17.26236114,1793.4,1793.1,0.05]
[1745610536105,11.68612386,1793.4,1793.2,4.744]
[1745610536412,5.57631182,1793.3,1793.2,4.744]
[1745610536615,5.57662279,1793.2,1793.1,0.05]
[1745610536946,7.30255539,1793.3,1793.1,4.794]
[1745610536947,5.57631182,1793.3,1793.1,4.794]
[1745610537722,5.57636319,1793.3,1793.1,4.794]
[1745610537907,5.57638476,1793.3,1793.1,4.794]
[1745610538793,12.43907556,1793.4,1793.1,4.794]
[1745610538794,6.86289999,1793.4,1793.1,4.794]
[1745610539002,7.54918999,1793.4,1793.1,4.794]
[1745610539338,13.12530818,1793.4,1793.1,0.05]
[1745610539497,5.57631182,1793.3,1793.1,0.05]
[1745610539698,18.70162041,1793.4,1793.1,0.05]
[1745610539899,13.12536316,1793.4,1793.1,0.05]
[1745610540234,1.31253632,1793.3,1793.1,0.05]
[1745610540401,7.54918999,1793.4,1793.1,5.62669279]
[1745610540833,13.12522922,1793.4,1793.1,5.62669279]
[1745610541138,13.12522922,1793.4,1793.1,0.05]
[1745610541441,18.7015078,1793.4,1793.1,0.05]
[1745610541637,13.12522922,1793.4,1793.1,0.05]
[1745610541821,1.31252292,1793.3,1793.1,5.62692789]
[1745610542035,1.83080366,1793.3,1793.1,5.62692789]
[1745610542417,1.83080366,1793.3,1793.1,0.05]
[1745610542617,1.31252292,1793.3,1793.1,0.05]
[1745610544744,6.79628999,1793.4,1793.1,5.62679487]
[1745610544933,6.79628999,1793.4,1793.2,5.57652642]
[1745610544934,6.10999999,1793.4,1793.2,5.57652642]
[1745610545249,6.10999999,1793.4,1793.1,5.62679487]
[1745610545548,6.10999999,1793.4,1793.3,5.57631182]
[1745610546249,6.10999999,1793.4,1793.2,6.3397825]
[1745610546550,6.10999999,1793.4,1793.2,6.33972647]
[1745610547648,6.10999999,1793.4,1793.3,5.57631182]
[1745610547945,6.10999999,1793.4,1793.2,6.33972647]
[1745610548449,6.10999999,1793.4,1793.2,6.33969743]
[1745610549025,6.3912822,1793.6,1793.2,6.33969743]
[1745610549220,13.77457369,1793.6,1793.2,6.33969743]
[1745610549434,6.09398624,1793.5,1793.2,6.33969743]
[1745610549840,5.57576348,1793.5,1793.2,6.33969743]
[1745610550036,5.57576348,1793.5,1793.3,4.743]
[1745610551263,8.19892974,1793.6,1793.3,4.743]
[1745610551462,6.39563404,1793.5,1793.3,4.743]
[1745610552246,0.81989297,1793.5,1793.3,4.743]
[1745610552861,5.57600089,1793.4,1793.3,4.743]
[1745610553039,6.09432056,1793.4,1793.3,4.743]
[1745610553640,5.57593987,1793.5,1793.3,4.743]
[1745610553960,0.8159,1793.6,1793.3,10.31928069]
[1745610553961,6.39142505,1793.6,1793.3,10.31928069]
[1745610554158,6.39142505,1793.6,1793.3,11.08878069]
[1745610554364,8.19908664,1793.6,1793.3,11.08878069]
[1745610555264,8.19908664,1793.6,1793.3,5.5125]
[1745610555759,5.57600089,1793.4,1793.3,4.743]
[1745610555967,5.57662279,1793.2,1793.1,0.05]
[1745610556164,6.33452279,1793.2,1793.1,0.05]
[1745610556466,14.24662034,1793.2,1793.1,0.05]
[1745610556650,14.76457407,1793.2,1793.1,0.05]
[1745610557367,9.70589412,1793.2,1793.1,0.05]
[1745610557550,15.28251691,1793.2,1793.1,0.05]
[1745610557751,8.94799412,1793.2,1793.1,0.05]
[1745610557951,14.52461691,1793.2,1793.1,0.05]
[1745610558355,14.00667407,1793.2,1793.1,0.05]
[1745610559254,6.62795372,1793.2,1793.1,0.05]
[1745610559658,6.10999999,1793.2,1793.1,0.05]
[1745610560056,5.57575118,1793.5,1793.3,0.8247]
[1745610560057,6.10999999,1793.5,1793.3,0.8247]
[1745610560970,11.68572664,1793.5,1793.3,0.8247]
[1745610561283,17.26171645,1793.5,1793.2,4.744]
[1745610561439,5.57616023,1793.4,1793.2,4.744]
[1745610561638,13.59275307,1793.5,1793.2,4.744]
[1745610561874,6.09371,1793.4,1793.2,4.744]
[1745610562048,5.57603057,1793.4,1793.2,4.744]
[1745610562247,19.16869603,1793.5,1793.2,4.744]
[1745610562449,0.51758427,1793.4,1793.2,4.744]
[1745610562634,5.57610842,1793.4,1793.2,4.744]
[1745610562839,6.10999999,1793.5,1793.2,4.744]
[1745610563040,11.68580786,1793.5,1793.2,4.744]
[1745610563260,0.51766176,1793.4,1793.2,10.32053446]
[1745610563666,5.57580787,1793.5,1793.2,10.32053446]
[1745610563871,0.51774388,1793.4,1793.2,10.32053446]
[1745610564078,5.57580787,1793.5,1793.2,10.32053446]
[1745610564240,5.57580787,1793.5,1793.2,4.744]
[1745610564573,0.51775183,1793.4,1793.2,10.320613]
[1745610564771,5.57580787,1793.5,1793.2,10.320613]
[1745610565150,5.57580787,1793.5,1793.2,4.744]
[1745610565459,11.68554189,1793.6,1793.2,10.32047076]
[1745610565864,0.51778952,1793.5,1793.2,10.32047076]
[1745610566257,6.09359095,1793.5,1793.2,4.744]
[1745610566572,11.68554189,1793.6,1793.2,10.32060049]
[1745610566873,12.93159608,1793.6,1793.2,10.32060049]
[1745610567481,5.57569019,1793.5,1793.2,10.32060049]
[1745610568364,5.57569019,1793.5,1793.2,10.32062248]
[1745610569144,5.57603844,1793.4,1793.2,4.744]
[1745610569654,11.15166583,1793.5,1793.2,4.744]
[1745610569837,7.42646219,1793.5,1793.2,4.744]
[1745610570261,1.850772,1793.5,1793.2,10.32058051]
[1745610571067,1.850772,1793.5,1793.2,15.89684065]
[1745610571274,1.850772,1793.5,1793.3,5.57616873]
[1745610571467,1.850772,1793.5,1793.2,10.3204107]
[1745610571662,11.6854673,1793.6,1793.3,5.57629611]
[1745610572069,11.6854673,1793.6,1793.2,15.89685101]
[1745610572249,17.26111927,1793.6,1793.2,10.3204107]
[1745610572449,11.6854673,1793.6,1793.3,5.57628473]